fUSD/lending_fUSD_20260103
["ID","MTS","AMOUNT","RATE_DAILY","PERIOD"]
[400357667,1767429143054,500.0,0.00017999,2]
[400357668,1767429143096,500.0,0.00017999,2]
[400357669,1767429143135,500.0,0.00017999,2]
[400357670,1767429143178,500.0,0.00017999,2]
[400357671,1767429143217,500.0,0.00017999,2]
[400357672,1767429143261,500.0,0.00017999,2]
[400357673,1767429143299,151.0,0.00017989,2]
[400357674,1767429143339,500.0,0.00017999,2]
[400357675,1767429143379,516.55921726,0.00017999,2]
[400357676,1767429143437,102.19125419,0.00017999,2]
[400357677,1767429143471,397.80874581,0.00017999,2]
[400357678,1767429143511,500.0,0.00017999,2]
[400357679,1767429143970,151.0,0.00017989,2]
[400357680,1767429144589,151.0,0.00017989,2]
[400357681,1767429145338,151.0,0.00017989,2]
[400357682,1767429146062,151.0,0.00017989,2]
[400357683,1767429146741,151.0,0.00017989,2]
[400357684,1767429147436,154.22792594,0.00017989,2]
[400357685,1767429181496,300.0,0.00017999,2]
[400357686,1767429182453,300.0,0.00017999,2]
[400357687,1767429182774,255.0,0.00017999,2]
[400357688,1767429190778,150.0,0.00017837,2]
[400357689,1767429199232,500.0,0.00017999,2]
[400357690,1767429199594,500.0,0.00017999,2]
[400357691,1767429199977,500.0,0.00017999,2]
[400357692,1767429200284,500.0,0.00017999,2]
[400357693,1767429200713,500.0,0.00017999,2]
[400357694,1767429201087,500.0,0.00017999,2]
[400357695,1767429201506,500.0,0.00017999,2]
[400357696,1767429201892,500.0,0.00017999,2]
[400357697,1767429202322,500.0,0.00017999,2]
[400357698,1767429202650,500.0,0.00017999,2]
[400357699,1767429203143,500.0,0.00017999,2]
[400357701,1767429203946,500.0,0.00017999,2]
[400357702,1767429204261,500.0,0.00017999,2]
[400357707,1767429272219,150.0,0.00017799,2]
[400357708,1767429288549,537.97332825,0.00017794,2]
[400357709,1767429288577,8277.94667175,0.00017794,2]
[400357710,1767429301249,300.0,0.00017999,2]
[400357711,1767429301434,167.0,0.00017999,2]
[400357712,1767429301493,1085.0,0.00017999,2]
[400357716,1767429350218,170.06332825,0.00017779,3]
[400357717,1767429350239,828.93667175,0.00017779,3]
[400357718,1767429361242,300.0,0.00017999,2]
[400357719,1767429429293,2634.12,0.00017792,2]
[400357720,1767429437384,151.0,0.00017989,2]
[400357721,1767429438086,151.0,0.00017989,2]
[400357722,1767429438780,151.0,0.00017989,2]
[400357723,1767429439518,151.0,0.00017989,2]
[400357724,1767429440217,151.0,0.00017989,2]
[400357725,1767429440926,151.0,0.00017989,2]
[400357727,1767429461435,4051.71,0.00017758,2]
[400357731,1767429485824,1279.24332825,0.0001782,2]
[400357732,1767429485847,4720.75667175,0.0001782,2]
[400357733,1767429485875,5279.25332825,0.0001792,2]
[400357734,1767429485897,720.74667175,0.0001792,2]
[400357735,1767429541698,170.0,0.00017999,2]
[400357736,1767429546533,1394.13,0.00017727,2]
[400357737,1767429571287,1852.42,0.0001774,2]
[400357738,1767429616120,340.69341682,0.000179,2]
[400357739,1767429619730,735.15,0.00017658,2]
[400357746,1767429664625,2904.96426097,0.0001799,2]
[400357747,1767429791296,1881.90565046,0.0001788,2]
[400357748,1767429791320,4118.09434954,0.0001788,2]
[400357749,1767429791348,5881.91565046,0.0001783,2]
[400357750,1767429791371,118.08434954,0.0001783,2]
[400357751,1767429791399,6000.0,0.0001793,2]
[400357752,1767429791428,3881.92565046,0.0001798,2]
[400357753,1767429791451,2118.07434954,0.0001798,2]
[400357754,1767429812232,250.0,0.00017812,2]
[400357755,1767429833212,500.0,0.00017999,2]
[400357756,1767429833251,500.0,0.00017999,2]
[400357757,1767429833283,500.0,0.00017999,2]
[400357758,1767429833316,500.0,0.00017999,2]
[400357759,1767429833353,500.0,0.00017999,2]
[400357760,1767429833390,500.0,0.00017999,2]
[400357761,1767429833428,500.0,0.00017999,2]
[400357762,1767429833459,500.0,0.00017999,2]
[400357763,1767429833495,500.0,0.00017999,2]
[400357764,1767429833535,500.0,0.00017999,2]
[400357765,1767429833572,500.0,0.00017999,2]
[400357766,1767429833603,500.0,0.00017999,2]
[400357767,1767429833635,500.0,0.00017999,2]
[400357768,1767429833674,500.0,0.00017999,2]
[400357769,1767429833707,500.0,0.00017999,2]
[400357770,1767429833739,500.0,0.00017999,2]
[400357771,1767429833770,500.0,0.00017999,2]
[400357772,1767429833801,420.92287491,0.00017999,2]
[400357773,1767429833832,500.0,0.00017999,2]
[400357774,1767429833865,329.08712509,0.00017999,2]
[400357775,1767429833891,170.91287491,0.00017999,2]
[400357776,1767429833927,500.0,0.00017999,2]
[400357777,1767429833960,500.0,0.00017999,2]
[400357778,1767429833996,500.0,0.00017999,2]
[400357779,1767429834028,500.0,0.00017999,2]
[400357780,1767429834059,500.0,0.00017999,2]
[400357781,1767429834093,600.0,0.00017999,2]
[400357782,1767429834124,500.0,0.00017999,2]
[400357783,1767429834158,500.0,0.00017999,2]
[400357784,1767429834202,500.0,0.00017999,2]
[400357785,1767429834234,500.0,0.00017999,2]
[400357786,1767429834267,500.0,0.00017999,2]
[400357787,1767429847261,500.0,0.00017999,2]
[400357788,1767429847296,500.0,0.00017999,2]
[400357789,1767429847339,500.0,0.00017999,2]
[400357790,1767429847374,500.0,0.00017999,2]
[400357791,1767429847411,500.0,0.00017999,2]
[400357792,1767429847480,500.0,0.00017999,2]
[400357793,1767429847511,500.0,0.00017999,2]
[400357794,1767429847552,500.0,0.00017999,2]
[400357795,1767429847585,229.09712509,0.00017999,2]
[400357796,1767429847611,270.90287491,0.00017999,2]
[400357797,1767429847643,500.0,0.00017999,2]
[400357798,1767429847677,500.0,0.00017999,2]
[400357799,1767429847724,500.0,0.00017999,2]
[400357800,1767429847776,500.0,0.00017999,2]
[400357801,1767429847839,500.0,0.00017999,2]
[400357802,1767429847889,500.0,0.00017999,2]
[400357803,1767429847953,500.0,0.00017999,2]
[400357804,1767429848013,533.95028155,0.00017999,2]
[400357805,1767429857696,500.0,0.00017999,2]
[400357806,1767429857757,500.0,0.00017999,2]
[400357807,1767429865427,167.4623778,0.0003287,120]
[400357808,1767429901540,1200.0,0.00017999,2]
[400357809,1767429902871,300.0,0.00017999,2]
[400357810,1767429911988,894.91811465,0.00017999,2]
[400357811,1767429921560,500.0,0.00017657,3]
[400357812,1767429924811,500.0,0.00017999,2]
[400357813,1767429924844,500.0,0.00017999,2]
[400357814,1767429924876,500.0,0.00017999,2]
[400357815,1767429924909,300.23872889,0.00017999,2]
[400357816,1767429924935,114.55612819,0.00017999,2]
[400357817,1767429924969,500.0,0.00017999,2]
[400357818,1767429925007,500.0,0.00017999,2]
[400357819,1767429925040,500.0,0.00017999,2]
[400357820,1767429925072,500.0,0.00017999,2]
[400357821,1767429925151,500.0,0.00017999,2]
[400357822,1767429942098,161.23,0.00014114,2]
[400357823,1767429961521,300.0,0.00017999,2]
[400357824,1767430002291,343.49,0.00013699,2]
[400357825,1767430021327,300.0,0.00017999,2]
[400357826,1767430028782,620.0,0.00017989,2]
[400357827,1767430031771,500.0,0.00017989,2]
[400357828,1767430032464,500.0,0.00017989,2]
[400357829,1767430033151,166.84423087,0.00017989,2]
[400357830,1767430033196,500.0,0.00017989,2]
[400357831,1767430033900,500.0,0.00017989,2]
[400357832,1767430034584,500.0,0.00017989,2]
[400357833,1767430035278,500.0,0.00017989,2]
[400357834,1767430035963,500.0,0.00017989,2]
[400357835,1767430036849,500.0,0.00017989,2]
[400357836,1767430037923,500.0,0.00017989,2]
[400357837,1767430038626,258.51757094,0.00017989,2]
[400357838,1767430038972,200.0,0.00017957,2]
[400357839,1767430039662,207.4,0.00017957,2]
[400357840,1767430040375,215.0738,0.00017957,2]
[400357841,1767430040983,112.89827,0.00017957,2]
[400357842,1767430041008,110.1332606,0.00017957,2]
[400357843,1767430041746,231.28369723,0.00017957,2]
[400357844,1767430042365,239.84119403,0.00017957,2]
[400357845,1767430042967,248.71531821,0.00017957,2]
[400357846,1767430043678,257.91778498,0.00017957,2]
[400357847,1767430044278,267.46074303,0.00017957,2]
[400357848,1767430044972,277.35679052,0.00017989,2]
[400357850,1767430049290,8367.3012114,0.00017982,2]
[400357851,1767430049313,4230.86683072,0.00017982,2]
[400357855,1767430081242,300.0,0.00017999,2]
[400357858,1767430096531,5469.14316928,0.0001786,2]
[400357859,1767430096553,530.85683072,0.0001786,2]
[400357860,1767430096692,6000.0,0.0001788,2]
[400357861,1767430096777,3469.15316928,0.0001791,2]
[400357862,1767430096806,151.0,0.0001791,2]
[400357863,1767430096829,153.45,0.0001791,2]
[400357864,1767430096853,500.0,0.0001791,2]
[400357865,1767430096877,500.0,0.0001791,2]
[400357866,1767430096905,310.71387342,0.0001791,2]
[400357867,1767430096929,500.0,0.0001791,2]
[400357868,1767430096953,415.6829573,0.0001791,2]
[400357869,1767430096982,31.4370427,0.0001783,2]
[400357870,1767430097006,244.86,0.0001783,2]
[400357871,1767430097030,244.86,0.0001783,2]
[400357872,1767430097053,172.48471315,0.0001783,2]
[400357873,1767430097078,4167.88173542,0.0001783,2]
[400357874,1767430097105,250.0,0.0001783,2]
[400357875,1767430097130,170.72467258,0.0001783,2]
[400357876,1767430097154,278.947735,0.0001783,2]
[400357877,1767430097178,165.79,0.0001783,2]
[400357878,1767430097203,165.79,0.0001783,2]
[400357879,1767430097227,107.22410115,0.0001783,2]
[400357880,1767430134655,-470.12465888,0.00017999,2]
[400357881,1767430141485,58.56589885,0.00017999,2]
[400357882,1767430141514,241.43410115,0.00017999,2]
[400357883,1767430149646,82.597338,0.00017694,2]
[400357884,1767430149677,133.222662,0.00017694,2]
[400357885,1767430161168,-20.40810302,0.00017999,2]
[400357886,1767430161192,-500.0,0.00017999,2]
[400357887,1767430161215,-611.15807998,0.00017999,2]
[400357888,1767430161237,-884.8310366,0.00018,2]
[400357889,1767430167353,78.12938549,0.00017,2]
[400357890,1767430167380,171.87061451,0.00017,2]
[400357892,1767430206413,-1200.0,0.00017999,2]
[400357893,1767430206442,-300.0,0.00017999,2]
[400357899,1767430231437,-17999.60972409,0.00018,2]
[400357900,1767430231451,-9784.01471837,0.00018,2]
[400357901,1767430231463,-9439.64891162,0.00018,2]
[400357902,1767430231472,-1783.6467161,0.00018,2]
[400357903,1767430231482,-15411.72450511,0.00018,2]
[400357904,1767430231493,-549.90444418,0.00018,2]
[400357905,1767430231648,-3831.45805427,0.00018,2]
[400357906,1767430231700,-1115.5,0.00018,2]
[400357907,1767430231756,-307.9912942,0.00018,2]
[400357908,1767430231767,-999.0,0.00018,2]
[400357909,1767430237434,-1035.23205721,0.00018,2]
[400357910,1767430237602,-12376.592878,0.00018,2]
[400358075,1767430239563,-7894.7099242,0.00018,2]
[400358077,1767430239575,-523.34287504,0.00018,2]
[400358079,1767430239588,-2993.80498,0.00018,2]
[400358121,1767430244218,-1099.0,0.00018,2]
[400358122,1767430244270,-45209.70833889,0.00018,2]
[400358123,1767430244281,-3391.5839362,0.00018,2]
[400358124,1767430244291,-151.0,0.00018,2]
[400358125,1767430244301,-1000.0,0.00018,2]
[400358126,1767430244311,-1000.0,0.00018,2]
[400358127,1767430244320,-795.03856116,0.00018,2]
[400358128,1767430244330,-304.0,0.00018,2]
[400358129,1767430244340,-931.57436435,0.00018,2]
[400358130,1767430244350,-195.0,0.00018,2]
[400358131,1767430244360,-250.0,0.00018,2]
[400358132,1767430244370,-195.75504075,0.00018,2]
[400358133,1767430244380,-611.68,0.00018004,2]
[400358134,1767430244389,-500.0,0.00018082,2]
[400358135,1767430244399,-9701.89,0.00018145,2]
[400358136,1767430244409,-150.49525617,0.00018169,15]
[400358137,1767430244419,-155.31133213,0.00018169,15]
[400358138,1767430244431,-152.29871651,0.00018169,15]
[400358139,1767430244453,-152.01367295,0.00018169,15]
[400358140,1767430244463,-209.91190666,0.00018169,15]
[400358141,1767430244474,-208.93630464,0.00018169,15]
[400358142,1767430244484,-150.0,0.00018169,15]
[400358143,1767430244494,-203.41974767,0.00018169,15]
[400358144,1767430244504,-150.0,0.00018169,15]
[400358145,1767430244513,-150.0,0.00018169,2]
[400358146,1767430244523,-153.19668317,0.00018169,15]
[400358147,1767430244534,-500.0,0.00018169,15]
[400358148,1767430244544,-150.0,0.00018169,15]
[400358149,1767430244554,-150.0,0.00018169,2]
[400358150,1767430244564,-150.0,0.00018169,15]
[400358151,1767430244574,-150.0,0.00018182,2]
[400358152,1767430244585,-152.06312895,0.00018182,2]
[400358153,1767430244595,-150.0,0.00018182,2]
[400358154,1767430244607,-204.40928987,0.00018182,2]
[400358155,1767430244617,-193.59951911,0.00018182,2]
[400358156,1767430244627,-150.0,0.00018182,2]
[400358157,1767430244637,-1609.32,0.00018182,2]
[400358158,1767430244646,-166.66,0.00018201,2]
[400358159,1767430244657,-1000.0,0.00018222,2]
[400358160,1767430244666,-503.0,0.00018274,2]
[400358161,1767430244677,-150.0,0.00018306,15]
[400358162,1767430244686,-150.0,0.00018306,15]
[400358163,1767430244695,-408.36736305,0.00018306,15]
[400358164,1767430244706,-150.0,0.00018306,15]
[400358165,1767430244716,-150.0,0.00018306,15]
[400358166,1767430244726,-150.0,0.00018319,2]
[400358167,1767430244736,-150.0,0.00018319,2]
[400358168,1767430244749,-150.0,0.00018319,2]
[400358169,1767430244759,-12953.7,0.00018338,2]
[400358170,1767430244769,-3240.0,0.00018339,2]
[400358171,1767430244779,-502.0,0.00018356,2]
[400358172,1767430244790,-500.0,0.00018356,2]
[400358173,1767430244805,-832.33,0.00018358,2]
[400358174,1767430244816,-151.0,0.00018372,2]
[400358175,1767430244826,-151.0,0.00018372,2]
[400358176,1767430244835,-151.0,0.00018372,2]
[400358177,1767430244845,-150.0,0.00018376,2]
[400358178,1767430244855,-274.32775227,0.0001839,3]
[400358179,1767430244866,-500.0,0.00018419,2]
[400358180,1767430244876,-7763.2,0.0001842,2]
[400358181,1767430244886,-200.0,0.00018442,2]
[400358182,1767430244896,-199.74900552,0.00018443,15]
[400358183,1767430244906,-150.0,0.00018443,15]
[400358184,1767430244916,-911.13,0.00018453,2]
[400358185,1767430244926,-150.0,0.00018456,2]
[400358186,1767430244936,-150.0,0.00018456,2]
[400358187,1767430244946,-252.21239896,0.00018456,2]
[400358188,1767430244956,-1609.32,0.00018456,2]
[400358189,1767430244967,-1405.73,0.00018457,2]
[400358190,1767430244977,-200.0,0.00018459,2]
[400358191,1767430244987,-872.67,0.00018511,2]
[400358192,1767430244996,-150.26122987,0.00018527,2]
[400358193,1767430245006,-154.64,0.00018563,2]
[400358194,1767430245016,-166.66,0.00018569,2]
[400358195,1767430245026,-150.0,0.00018593,2]
[400358196,1767430245036,-500.0,0.0001863,2]
[400358197,1767430245047,-482.26,0.00018635,2]
[400358198,1767430245057,-1609.32,0.0001873,2]
[400358199,1767430245067,-165.68,0.00018768,2]
[400358200,1767430245077,-416.08266804,0.00018904,2]
[400358201,1767430245087,-506.85863405,0.00018904,2]
[400358202,1767430245097,-611.68,0.00018904,2]
[400358203,1767430245107,-1000.0,0.00018905,2]
[400358204,1767430245117,-166.66,0.00018936,2]
[400358205,1767430245127,-300.0,0.00019,2]
[400358206,1767430245137,-4234.43,0.00019001,2]
[400358207,1767430245147,-1609.32,0.00019004,2]
[400358208,1767430245156,-200.3854381,0.00019082,2]
[400358210,1767430245171,-506.93,0.00019139,2]
[400358212,1767430245182,-1609.32,0.00019278,2]
[400358213,1767430245192,-166.66,0.00019304,2]
[400358214,1767430245202,-482.26,0.00019325,2]
[400358215,1767430245212,-642.94,0.00019358,2]
[400358216,1767430245222,-287.61899177,0.00019358,2]
[400358217,1767430245232,-19100.78051329,0.000194,2]
[400358218,1767430245243,-500.0,0.00019418,2]
[400358219,1767430245254,-500.0,0.00019499,2]
[400358220,1767430245265,-500.0,0.00019499,2]
[400358221,1767430245275,-500.0,0.00019499,2]
[400358222,1767430245286,-521.20759762,0.00019499,2]
[400358223,1767430245296,-157.25192,0.000195,2]
[400358224,1767430245306,-245.727355,0.000195,2]
[400358225,1767430245316,-210.425724,0.000195,2]
[400358226,1767430245326,-151.0,0.000195,2]
[400358227,1767430245336,-151.0,0.000195,2]
[400358228,1767430245346,-151.0,0.000195,2]
[400358229,1767430245356,-151.0,0.000195,2]
[400358230,1767430245367,-271.87,0.00019519,2]
[400358231,1767430245377,-1609.32,0.00019552,2]
[400358232,1767430245387,-1000.0,0.00019588,2]
[400358233,1767430245398,-300.0,0.00019799,2]
[400358234,1767430245407,-195.0,0.00019799,2]
[400358235,1767430245418,-354.35076502,0.00019799,2]
[400358236,1767430245428,-2424.91881963,0.00019799,2]
[400358237,1767430245438,-300.0,0.00019799,2]
[400358238,1767430245449,-195.0,0.00019799,2]
[400358239,1767430245459,-372.81151272,0.00019799,2]
[400358240,1767430245469,-200.57173617,0.000198,2]
[400358241,1767430245479,-195.0,0.000198,2]
[400358242,1767430245489,-152.01186287,0.000198,2]
[400358243,1767430245499,-200.0,0.000198,2]
[400358244,1767430245509,-250.0,0.000198,2]
[400358245,1767430245519,-835.48772151,0.000198,2]
[400358246,1767430245533,-2506.2218427,0.000198,2]
[400358247,1767430245543,-200.0,0.000198,2]
[400358248,1767430245554,-300.0,0.000198,2]
[400358249,1767430245564,-195.0,0.000198,2]
[400358250,1767430245574,-300.0,0.000198,2]
[400358251,1767430245584,-4149.14606167,0.000198,2]
[400358252,1767430245594,-611.68,0.00019805,2]
[400358253,1767430245604,-1609.32,0.00019826,2]
[400358254,1767430245614,-200.02709707,0.00019949,2]
[400358255,1767430245624,-1047.82673423,0.00019949,5]
[400358256,1767430245634,-178.52744216,0.00019949,5]
[400358257,1767430245644,-504.58725569,0.00019949,2]
[400358258,1767430245655,-636.38573291,0.00019949,2]
[400358259,1767430245665,-239.62950503,0.00019949,2]
[400358260,1767430245675,-136507.49656925,0.0001995,15]
[400358261,1767430245685,-151.0,0.0001995,2]
[400358262,1767430245950,-151.0,0.0001995,2]
[400358263,1767430245963,-151.0,0.0001995,2]
[400358264,1767430245974,-151.0,0.0001995,2]
[400358266,1767430245984,-151.0,0.0001995,2]
[400358268,1767430245993,-151.0,0.0001995,2]
[400358269,1767430246007,-124145.9037,0.0002,2]
[400358270,1767430246017,-150.16584728,0.0002,20]
[400358271,1767430246027,-151.0,0.0002,2]
[400358272,1767430246037,-482.26,0.00020016,2]
[400358273,1767430246047,-1609.32,0.000201,2]
[400358274,1767430246056,-343.49,0.00020187,2]
[400358275,1767430246066,-1000.0,0.00020241,2]
[400358276,1767430246075,-1000.0,0.00020272,2]
[400358278,1767430246085,-20828.7473508,0.00020299,2]
[400358280,1767430246095,-1609.32,0.00020374,2]
[400358281,1767430246105,-500.0,0.00020446,2]
[400358282,1767430246115,-500.0,0.00020446,2]
[400358283,1767430246124,-506.93,0.00020509,2]
[400358284,1767430246134,-1609.32,0.00020648,2]
[400358285,1767430246144,-611.68,0.00020705,2]
[400358286,1767430246154,-482.26,0.00020706,2]
[400358287,1767430246163,-298.26089446,0.00020727,2]
[400358288,1767430246175,-12598.16804212,0.00020762,2]
[400358289,1767430246184,-4647.521732,0.00020812,2]
[400358290,1767430246194,-1609.32,0.00020922,2]
[400358291,1767430246206,-1000.0,0.00020955,2]
[400358292,1767430246216,-6576.28824291,0.0002099,2]
[400358293,1767430246226,-168.8570213,0.0002106,2]
[400358294,1767430246237,-1609.32919147,0.00021196,2]
[400358295,1767430246247,-482.26,0.00021396,2]
[400358296,1767430246257,-611.68,0.00021605,2]
[400358297,1767430246267,-165.68,0.00021866,2]
[400358298,1767430246277,-500.0,0.00021917,2]
[400358299,1767430246286,-500.0,0.00021917,2]
[400358300,1767430246296,-500.0,0.00021917,2]
[400358301,1767430246306,-500.49602922,0.00021917,2]
[400358302,1767430246316,-5000.0,0.00021918,2]
[400358303,1767430246326,-271.87,0.00021959,2]
[400358304,1767430246336,-19100.78051326,0.00022022,2]
[400358305,1767430246345,-151.0,0.00022039,2]
[400358306,1767430246356,-151.0,0.00022039,2]
[400358307,1767430246365,-482.26,0.00022086,2]
[400358308,1767430246375,-309.29654756,0.00022096,2]
[400358309,1767430246385,-1000.0,0.0002249,2]
[400358310,1767430246395,-151.0,0.00022562,2]
[400358311,1767430246405,-151.0,0.00022562,2]
[400358312,1767430246414,-151.0,0.00022562,2]
[400358313,1767430246427,-29999.99,0.00022562,2]
[400358314,1767430246437,-9999.99,0.00022562,2]
[400358315,1767430246447,-482.26,0.00022776,2]
[400358316,1767430246457,-320.74051982,0.00023465,2]
[400358317,1767430246467,-482.26,0.00023467,2]
[400358318,1767430246477,-12598.16804212,0.00023542,2]
[400358319,1767430246486,-2000.0,0.000238,2]
[400358320,1767430246496,-469.01,0.00024099,2]
[400358321,1767430246505,-482.26,0.00024157,2]
[400358322,1767430246515,-271.87,0.00024399,2]
[400358323,1767430246525,-167.16,0.00024606,2]
[400358324,1767430246535,-19100.78051326,0.00024644,2]
[400358325,1767430246545,-1000.0,0.00024658,2]
[400358326,1767430246554,-163.87,0.00024658,2]
[400358327,1767430246564,-6647.0,0.00024734,2]
[400358328,1767430246573,-175.26073618,0.00024734,8]
[400358329,1767430246591,-261.88869652,0.00024734,2]
[400358330,1767430246606,-1000.0,0.00024739,2]
[400358331,1767430246617,-508.04103286,0.00024799,2]
[400358332,1767430246627,-500.0,0.00024799,2]
[400358333,1767430246638,-151.0,0.00024799,2]
[400358334,1767430246649,-193461.744012,0.000248,3]
[400358335,1767430246659,-151.0,0.000248,7]
[400358336,1767430246668,-332.60791905,0.00024834,2]
[400358337,1767430246679,-482.26,0.00024847,2]
[400358338,1767430246689,-4051.71,0.00024861,2]
[400358339,1767430246699,-111612.544623,0.0002489,3]
[400358340,1767430246710,-151.0,0.0002489,7]
[400358341,1767430246720,-235.06271318,0.0002489,2]
[400358342,1767430246730,-161.7,0.000249,7]
[400358343,1767430246744,-151.000017,0.000249,2]
[400358344,1767430246754,-151.0,0.000249,7]
[400358345,1767430246764,-151.0,0.000249,7]
[400358346,1767430246773,-410.29501306,0.0002491,2]
[400358347,1767430246784,-1280.62234173,0.0002549,3]
[400358348,1767430246794,-482.26,0.00025537,2]
[400358349,1767430246805,-167.16,0.00025959,2]
[400358350,1767430246815,-1685.35139972,0.00025989,2]
[400358351,1767430246824,-222.86674835,0.00025994,2]
[400358352,1767430246834,-454.19250895,0.00026203,2]
[400358353,1767430246843,-482.26,0.00026227,2]
[400358354,1767430246853,-7440.83630817,0.00026311,3]
[400358355,1767430246863,-12598.16804212,0.00026321,2]
[400358356,1767430246873,-7440.83630817,0.0002636,3]
[400358357,1767430246883,-1403.0,0.0002637,2]
[400358358,1767430246892,-613.0,0.0002637,2]
[400358359,1767430246902,-3464.0,0.0002637,2]
[400358360,1767430246912,-1329.0,0.0002637,2]
[400358361,1767430246921,-1265.0,0.0002637,2]
[400358362,1767430246931,-433.0,0.0002637,2]
[400358363,1767430246941,-565.0,0.0002637,2]
[400358364,1767430246951,-6545.0,0.0002637,2]
[400358365,1767430246960,-4814.0,0.0002637,2]
[400358366,1767430246970,-2434.0,0.0002637,2]
[400358367,1767430246979,-343.49,0.00026676,2]
[400358368,1767430246989,-1653.16752686,0.00026751,2]
[400358369,1767430246999,-1000.0,0.00026988,2]
[400358370,1767430247010,-44669.0,0.00027,2]
[400358371,1767430247019,-7440.83630817,0.00027004,3]
[400358372,1767430247029,-500.0,0.00027014,2]
[400358373,1767430247043,-285.28195798,0.00027095,2]
[400358374,1767430247053,-1019.0,0.000271,2]
[400358375,1767430247063,-14881.6726163,0.00027185,3]
[400358376,1767430247073,-153.4642273,0.00027187,2]
[400358377,1767430247083,-152.0,0.00027195,3]
[400358378,1767430247094,-151.0,0.00027195,3]
[400358379,1767430247104,-152.0,0.00027195,3]
[400358380,1767430247114,-151.0,0.00027195,3]
[400358381,1767430247123,-152.0,0.00027195,3]
[400358382,1767430247133,-151.0,0.00027195,3]
[400358383,1767430247144,-152.0,0.00027195,3]
[400358384,1767430247154,-1259.0,0.00027195,3]
[400358385,1767430247164,-152.0,0.00027195,3]
[400358386,1767430247174,-151.0,0.00027195,3]
[400358387,1767430247184,-1259.0,0.00027195,3]
[400358388,1767430247195,-152.0,0.00027195,3]
[400358389,1767430247205,-151.0,0.00027195,3]
[400358390,1767430247216,-839.0,0.00027195,3]
[400358391,1767430247226,-1259.0,0.00027195,3]
[400358392,1767430247236,-152.0,0.00027195,3]
[400358393,1767430247245,-1259.0,0.00027195,3]
[400358394,1767430247255,-152.0,0.00027195,3]
[400358395,1767430247265,-839.0,0.00027195,3]
[400358396,1767430247275,-151.0,0.00027195,3]
[400358397,1767430247284,-1259.0,0.00027195,3]
[400358398,1767430247295,-152.0,0.00027195,3]
[400358399,1767430247304,-839.0,0.00027195,3]
[400358400,1767430247314,-1259.0,0.00027195,3]
[400358401,1767430247323,-151.0,0.00027195,3]
[400358402,1767430247333,-839.0,0.00027195,3]
[400358403,1767430247343,-152.0,0.00027195,3]
[400358404,1767430247353,-154.0,0.00027195,3]
[400358405,1767430247363,-1259.0,0.00027195,3]
[400358406,1767430247373,-151.0,0.00027195,3]
[400358407,1767430247382,-839.0,0.00027195,3]
[400358408,1767430247392,-152.0,0.00027195,3]
[400358409,1767430247402,-1259.0,0.00027195,3]